[Event "Live Chess"]
[Site "Chess.com"]
[Date "2023.05.20"]
[Round "-"]
[White "HonestJoe1"]
[Black "smoggyrabbit"]
[Result "1-0"]
[WhiteElo "2124"]
[BlackElo "1700"]
[TimeControl "300"]
[EndTime "14:59:03 PDT"]
[Termination "HonestJoe1 won by resignation"]

1. d4 {[%clk 0:04:50.5]} 1... e6 {[%clk 0:04:58.9]} 2. e4 {[%clk 0:04:49.1]}
2... d5 {[%clk 0:04:57.3]} 3. e5 {[%clk 0:04:48]} 3... c5 {[%clk 0:04:56.2]} 4.
Qg4 {[%clk 0:04:46.5]} 4... cxd4 {[%clk 0:04:40.9]} 5. Nf3 {[%clk 0:04:44.4]}
5... Nc6 {[%clk 0:04:39.7]} 6. Bd3 {[%clk 0:04:43.3]} 6... Nge7 {[%clk
0:04:32.8]} 7. O-O {[%clk 0:04:41.4]} 7... Ng6 {[%clk 0:04:32]} 8. Re1 {[%clk
0:04:40.3]} 8... Qc7 {[%clk 0:04:29.3]} 9. Qg3 {[%clk 0:04:38.8]} 9... Be7
{[%clk 0:04:27.2]} 10. c3 {[%clk 0:04:35.9]} 10... dxc3 {[%clk 0:04:25.9]} 11.
Nxc3 {[%clk 0:04:34.8]} 11... O-O {[%clk 0:04:24.6]} 12. h4 {[%clk 0:04:04.8]}
12... Bb4 {[%clk 0:04:21.3]} 13. h5 {[%clk 0:04:02.4]} 13... Nge7 {[%clk
0:04:15.6]} 14. Bh6 {[%clk 0:04:00.2]} 14... g6 {[%clk 0:04:13.4]} 15. Bxf8
{[%clk 0:03:58.1]} 15... d4 {[%clk 0:04:11.6]} 16. Bxe7 {[%clk 0:03:48.3]} 16...
Qxe7 {[%clk 0:04:06.6]} 17. Ne4 {[%clk 0:03:45.4]} 17... Bxe1 {[%clk 0:04:05.2]}
18. Rxe1 {[%clk 0:03:43]} 18... Bd7 {[%clk 0:03:30]} 19. Nf6+ {[%clk 0:03:41.6]}
19... Kg7 {[%clk 0:03:25.2]} 20. h6+ {[%clk 0:03:33.6]} 20... Kh8 {[%clk
0:03:18.9]} 21. Nxd7 {[%clk 0:03:26]} 21... Qxd7 {[%clk 0:03:17.2]} 22. Qg5
{[%clk 0:03:24.1]} 22... Qe7 {[%clk 0:03:15.4]} 23. Qxe7 {[%clk 0:03:19.3]}
23... Nxe7 {[%clk 0:03:15.3]} 24. Rc1 {[%clk 0:03:16.5]} 24... Nc6 {[%clk
0:03:06.5]} 25. Be4 {[%clk 0:03:12]} 25... Rc8 {[%clk 0:03:01.8]} 26. Bxc6
{[%clk 0:03:09.2]} 26... bxc6 {[%clk 0:03:01.7]} 27. Nxd4 {[%clk 0:03:08]} 27...
c5 {[%clk 0:02:59.8]} 28. Nb3 {[%clk 0:03:04]} 28... Kg8 {[%clk 0:02:52.6]} 29.
Rxc5 {[%clk 0:03:02]} 29... Rxc5 {[%clk 0:02:51]} 30. Nxc5 {[%clk 0:03:00.7]}
30... Kf8 {[%clk 0:02:50.1]} 31. Ne4 {[%clk 0:02:55.5]} 31... Ke7 {[%clk
0:02:47.4]} 32. Nf6 {[%clk 0:02:54.4]} 1-0

[Event "Live Chess"]
[Site "Chess.com"]
[Date "2023.05.20"]
[Round "-"]
[White "Man-Del-Brot"]
[Black "diana21strabt"]
[Result "0-1"]
[WhiteElo "1123"]
[BlackElo "1696"]
[TimeControl "300"]
[EndTime "14:59:14 PDT"]
[Termination "diana21strabt won on time"]

1. Nf3 {[%clk 0:04:54.7]} 1... Nf6 {[%clk 0:04:58.7]} 2. b3 {[%clk 0:04:53.8]}
2... g6 {[%clk 0:04:57.8]} 3. Bb2 {[%clk 0:04:52.7]} 3... Bg7 {[%clk 0:04:57.4]}
4. d3 {[%clk 0:04:51.8]} 4... O-O {[%clk 0:04:56.8]} 5. e3 {[%clk 0:04:50]} 5...
c6 {[%clk 0:04:55.4]} 6. Nbd2 {[%clk 0:04:48.7]} 6... Qb6 {[%clk 0:04:54.5]} 7.
Nc4 {[%clk 0:04:43.9]} 7... Qc7 {[%clk 0:04:52.8]} 8. Be2 {[%clk 0:04:37.3]}
8... d5 {[%clk 0:04:51.8]} 9. Ncd2 {[%clk 0:04:28]} 9... Bg4 {[%clk 0:04:49.6]}
10. Nd4 {[%clk 0:04:19.7]} 10... Bxe2 {[%clk 0:04:47.4]} 11. Nxe2 {[%clk
0:04:17]} 11... e5 {[%clk 0:04:45.5]} 12. Ng3 {[%clk 0:04:14]} 12... Nbd7 {[%clk
0:04:44.1]} 13. Qe2 {[%clk 0:04:09.9]} 13... a5 {[%clk 0:04:38]} 14. a4 {[%clk
0:04:06.1]} 14... b5 {[%clk 0:04:34.3]} 15. c4 {[%clk 0:03:38]} 15... dxc4
{[%clk 0:04:30.5]} 16. bxc4 {[%clk 0:03:34.1]} 16... b4 {[%clk 0:04:26.5]} 17.
Nb3 {[%clk 0:03:31.1]} 17... Qd6 {[%clk 0:04:17.4]} 18. O-O {[%clk 0:03:23.3]}
18... Rfd8 {[%clk 0:04:09.8]} 19. Rfd1 {[%clk 0:02:57.3]} 19... Nc5 {[%clk
0:04:01]} 20. Nxc5 {[%clk 0:02:43.2]} 20... Qxc5 {[%clk 0:03:58.9]} 21. Ne4
{[%clk 0:02:40.6]} 21... Nxe4 {[%clk 0:03:57.3]} 22. dxe4 {[%clk 0:02:38.1]}
22... Qb6 {[%clk 0:03:40.9]} 23. Rac1 {[%clk 0:02:20.3]} 23... Rxd1+ {[%clk
0:03:38.1]} 24. Rxd1 {[%clk 0:02:16.1]} 24... Rd8 {[%clk 0:03:35]} 25. Rxd8+
{[%clk 0:02:11.6]} 25... Qxd8 {[%clk 0:03:33.7]} 26. h3 {[%clk 0:02:08.6]} 26...
Qd6 {[%clk 0:03:16.6]} 27. Qc2 {[%clk 0:01:39.8]} 27... Kf8 {[%clk 0:02:57.7]}
28. c5 {[%clk 0:01:37.8]} 28... Qe6 {[%clk 0:02:49.5]} 29. Qd3 {[%clk
0:01:30.3]} 29... Bf6 {[%clk 0:02:29.6]} 30. Kh1 {[%clk 0:01:17.6]} 30... Be7
{[%clk 0:02:17.1]} 31. Kh2 {[%clk 0:00:50.9]} 31... Ke8 {[%clk 0:02:01.5]} 32.
f4 {[%clk 0:00:48.3]} 32... f6 {[%clk 0:01:53.6]} 33. f5 {[%clk 0:00:46.1]}
33... Qd7 {[%clk 0:01:48.3]} 34. fxg6 {[%clk 0:00:44.2]} 34... hxg6 {[%clk
0:01:37.6]} 35. Qxd7+ {[%clk 0:00:36.3]} 35... Kxd7 {[%clk 0:01:36.5]} 36. Kg3
{[%clk 0:00:32.7]} 36... Bxc5 {[%clk 0:01:34.4]} 37. Kf3 {[%clk 0:00:30.7]}
37... Ke6 {[%clk 0:01:30.5]} 38. g4 {[%clk 0:00:29.4]} 38... Be7 {[%clk
0:01:27.1]} 39. h4 {[%clk 0:00:27.8]} 39... c5 {[%clk 0:01:25.9]} 40. g5 {[%clk
0:00:24.2]} 40... fxg5 {[%clk 0:01:24.4]} 41. hxg5 {[%clk 0:00:22.2]} 41... Bxg5
{[%clk 0:01:23.4]} 42. Kg4 {[%clk 0:00:21]} 42... Bxe3 {[%clk 0:01:21.6]} 43.
Kf3 {[%clk 0:00:14.2]} 43... Bd4 {[%clk 0:01:20.2]} 44. Bc1 {[%clk 0:00:10.4]}
44... b3 {[%clk 0:01:18.3]} 45. Ke2 {[%clk 0:00:07.8]} 45... b2 {[%clk
0:01:17.1]} 46. Bxb2 {[%clk 0:00:06.2]} 46... Bxb2 {[%clk 0:01:16.5]} 47. Kd2
{[%clk 0:00:05.9]} 47... g5 {[%clk 0:01:14.5]} 48. Kc2 {[%clk 0:00:05.8]} 48...
g4 {[%clk 0:01:13]} 49. Kxb2 {[%clk 0:00:04.7]} 49... g3 {[%clk 0:01:12.3]} 50.
Kc2 {[%clk 0:00:03.6]} 50... g2 {[%clk 0:01:11.4]} 51. Kc3 {[%clk 0:00:02.1]}
51... g1=Q {[%clk 0:01:09.5]} 52. Kc4 {[%clk 0:00:01.9]} 52... Qd4+ {[%clk
0:01:08.3]} 53. Kb5 {[%clk 0:00:00.1]} 53... Qb4+ {[%clk 0:01:07.1]} 0-1

[Event "Live Chess"]
[Site "Chess.com"]
[Date "2023.05.20"]
[Round "-"]
[White "chessfiction"]
[Black "WilliamofOrange16th"]
[Result "1-0"]
[WhiteElo "2346"]
[BlackElo "1836"]
[TimeControl "300"]
[EndTime "14:59:17 PDT"]
[Termination "chessfiction won by resignation"]

1. e4 {[%clk 0:04:57.8]} 1... d6 {[%clk 0:04:59.4]} 2. d4 {[%clk 0:04:56]} 2...
Nf6 {[%clk 0:04:58.6]} 3. Nc3 {[%clk 0:04:55.4]} 3... Nbd7 {[%clk 0:04:58.1]} 4.
f4 {[%clk 0:04:54.9]} 4... e5 {[%clk 0:04:57.7]} 5. Nf3 {[%clk 0:04:54.8]} 5...
exd4 {[%clk 0:04:56.6]} 6. Nxd4 {[%clk 0:04:53.6]} 6... g6 {[%clk 0:04:55.5]} 7.
Bc4 {[%clk 0:04:52.6]} 7... Bg7 {[%clk 0:04:52.9]} 8. O-O {[%clk 0:04:52.1]}
8... O-O {[%clk 0:04:47.2]} 9. Kh1 {[%clk 0:04:43.8]} 9... Re8 {[%clk
0:04:42.6]} 10. Be3 {[%clk 0:04:40]} 10... Nxe4 {[%clk 0:04:40]} 11. Qf3 {[%clk
0:04:34.7]} 11... Nxc3 {[%clk 0:04:38.6]} 12. bxc3 {[%clk 0:04:34.6]} 12... c6
{[%clk 0:04:37.4]} 13. f5 {[%clk 0:04:33.1]} 13... d5 {[%clk 0:04:35.3]} 14.
fxg6 {[%clk 0:04:30.7]} 14... fxg6 {[%clk 0:04:30.1]} 15. Bd3 {[%clk 0:04:19]}
15... Ne5 {[%clk 0:04:24.7]} 16. Qg3 {[%clk 0:04:17.5]} 16... Nxd3 {[%clk
0:04:19.5]} 17. cxd3 {[%clk 0:04:17.4]} 17... Rf8 {[%clk 0:03:51.1]} 18. Bg5
{[%clk 0:04:15.7]} 18... Qe8 {[%clk 0:03:46.7]} 19. Rfe1 {[%clk 0:04:09.6]}
19... Qf7 {[%clk 0:03:43.8]} 20. h4 {[%clk 0:04:07.9]} 20... Bf6 {[%clk
0:03:36.2]} 21. Bh6 {[%clk 0:04:04.6]} 21... Re8 {[%clk 0:03:35.5]} 22. h5
{[%clk 0:04:01.9]} 22... Bg7 {[%clk 0:03:20.6]} 23. Rxe8+ {[%clk 0:03:50.5]}
23... Qxe8 {[%clk 0:03:19.3]} 24. Bxg7 {[%clk 0:03:47.9]} 24... Kxg7 {[%clk
0:03:17.9]} 25. Re1 {[%clk 0:03:46.6]} 25... Qf7 {[%clk 0:03:15.2]} 26. Qe5+
{[%clk 0:03:38.6]} 26... Kg8 {[%clk 0:03:05.6]} 27. h6 {[%clk 0:03:36.6]} 27...
Bf5 {[%clk 0:03:03.1]} 28. Nxf5 {[%clk 0:03:34.9]} 28... gxf5 {[%clk 0:03:01.9]}
29. Qg3+ {[%clk 0:03:31.9]} 29... Qg6 {[%clk 0:02:57.5]} 30. Qxg6+ {[%clk
0:03:30.8]} 30... hxg6 {[%clk 0:02:56.3]} 31. Re7 {[%clk 0:03:30.7]} 31... Rb8
{[%clk 0:02:47.9]} 32. Kh2 {[%clk 0:03:28.1]} 32... a5 {[%clk 0:02:47.1]} 33.
Kg3 {[%clk 0:03:27.2]} 33... g5 {[%clk 0:02:44]} 34. Kf3 {[%clk 0:03:24.6]}
34... b5 {[%clk 0:02:42.5]} 35. Ke3 {[%clk 0:03:22.1]} 35... b4 {[%clk
0:02:36.4]} 36. Kd4 {[%clk 0:03:11.6]} 36... bxc3 {[%clk 0:02:34.9]} 37. Kxc3
{[%clk 0:03:11.5]} 37... a4 {[%clk 0:02:23.2]} 38. Kd4 {[%clk 0:02:56.9]} 38...
Rb2 {[%clk 0:02:07.7]} 39. Ra7 {[%clk 0:02:50.7]} 39... Rxa2 {[%clk 0:02:05.6]}
40. Ke5 {[%clk 0:02:49.7]} 40... Rxg2 {[%clk 0:01:29.6]} 41. Kf6 {[%clk
0:02:47.5]} 41... Rh2 {[%clk 0:01:20.2]} 42. Kg6 {[%clk 0:02:45.7]} 42... Kf8
{[%clk 0:01:17]} 43. h7 {[%clk 0:02:38.8]} 43... g4 {[%clk 0:01:01.5]} 44. Rf7+
{[%clk 0:02:27.3]} 44... Ke8 {[%clk 0:00:59.8]} 45. Rxf5 {[%clk 0:02:21.8]}
45... Rxh7 {[%clk 0:00:29.7]} 46. Kxh7 {[%clk 0:02:21.7]} 46... a3 {[%clk
0:00:29.2]} 47. Rf2 {[%clk 0:02:15.9]} 47... g3 {[%clk 0:00:27.2]} 48. Ra2
{[%clk 0:02:14.9]} 48... Kd7 {[%clk 0:00:26]} 49. Rxa3 {[%clk 0:02:13.2]} 49...
Kd6 {[%clk 0:00:25.9]} 50. d4 {[%clk 0:02:10.1]} 50... g2 {[%clk 0:00:24.1]} 51.
Rg3 {[%clk 0:02:09]} 51... c5 {[%clk 0:00:24]} 52. Rg6+ {[%clk 0:02:08.1]} 52...
Kd7 {[%clk 0:00:22.2]} 53. dxc5 {[%clk 0:02:07.2]} 53... d4 {[%clk 0:00:19.6]}
54. Rxg2 {[%clk 0:02:01.3]} 54... Kc6 {[%clk 0:00:18.7]} 55. Rc2 {[%clk
0:02:00.5]} 55... d3 {[%clk 0:00:17.7]} 56. Rd2 {[%clk 0:01:59.6]} 56... Kxc5
{[%clk 0:00:16.6]} 57. Rxd3 {[%clk 0:01:59.5]} 57... Kc4 {[%clk 0:00:16.2]} 58.
Rg3 {[%clk 0:01:59.1]} 1-0

[Event "Live Chess"]
[Site "Chess.com"]
[Date "2023.05.20"]
[Round "-"]
[White "mikkyb4"]
[Black "Tushinskiy"]
[Result "0-1"]
[WhiteElo "1008"]
[BlackElo "2141"]
[TimeControl "300"]
[EndTime "14:59:18 PDT"]
[Termination "Tushinskiy won by resignation"]

1. e4 {[%clk 0:04:54.7]} 1... e5 {[%clk 0:04:57.1]} 2. Nc3 {[%clk 0:04:53.5]}
2... d6 {[%clk 0:04:57]} 3. Bc4 {[%clk 0:04:49.4]} 3... Nf6 {[%clk 0:04:55]} 4.
d3 {[%clk 0:04:48.4]} 4... Be7 {[%clk 0:04:52.5]} 5. f4 {[%clk 0:04:45.3]} 5...
Bg4 {[%clk 0:04:50.5]} 6. Nf3 {[%clk 0:04:41.8]} 6... Nbd7 {[%clk 0:04:45.5]} 7.
f5 {[%clk 0:04:37.7]} 7... c6 {[%clk 0:04:41]} 8. h3 {[%clk 0:04:22.1]} 8...
Bxf3 {[%clk 0:04:37.6]} 9. Qxf3 {[%clk 0:04:19.4]} 9... b5 {[%clk 0:04:37.5]}
10. Bb3 {[%clk 0:04:14.9]} 10... a5 {[%clk 0:04:36.6]} 11. a3 {[%clk 0:04:13.7]}
11... Nc5 {[%clk 0:04:35.1]} 12. Ba2 {[%clk 0:04:12.3]} 12... b4 {[%clk
0:04:34.2]} 13. axb4 {[%clk 0:04:05.9]} 13... axb4 {[%clk 0:04:34.1]} 14. Ne2
{[%clk 0:04:03.6]} 14... b3 {[%clk 0:04:31.3]} 15. cxb3 {[%clk 0:04:00.1]} 15...
Nxb3 {[%clk 0:04:28.8]} 16. Be3 {[%clk 0:03:50]} 16... Nxa1 {[%clk 0:04:24.4]}
17. Bxf7+ {[%clk 0:03:42]} 17... Kxf7 {[%clk 0:04:22.6]} 18. O-O {[%clk
0:03:41.1]} 18... Nc2 {[%clk 0:04:21.2]} 19. Bd2 {[%clk 0:03:31]} 19... Qb6+
{[%clk 0:04:17]} 20. Kh2 {[%clk 0:03:23.1]} 20... Qxb2 {[%clk 0:04:13.2]} 21.
Bc3 {[%clk 0:03:14.2]} 21... Qb3 {[%clk 0:04:07.1]} 22. d4 {[%clk 0:02:49.8]}
22... Nxd4 {[%clk 0:03:57]} 23. Nxd4 {[%clk 0:02:42.1]} 23... exd4 {[%clk
0:03:55.2]} 24. e5 {[%clk 0:02:34.3]} 24... dxe5 {[%clk 0:03:44.8]} 25. Qxc6
{[%clk 0:02:26.3]} 25... Qd5 {[%clk 0:03:41.1]} 26. Qxd5+ {[%clk 0:02:05.8]}
26... Nxd5 {[%clk 0:03:38.1]} 0-1

[Event "Live Chess"]
[Site "Chess.com"]
[Date "2023.05.20"]
[Round "-"]
[White "blowerd"]
[Black "GEMdzq"]
[Result "0-1"]
[WhiteElo "1385"]
[BlackElo "2248"]
[TimeControl "300"]
[EndTime "14:59:19 PDT"]
[Termination "GEMdzq won by checkmate"]

1. e4 {[%clk 0:04:57.7]} 1... d6 {[%clk 0:04:59]} 2. Nf3 {[%clk 0:04:55.2]} 2...
Nf6 {[%clk 0:04:58.5]} 3. Nc3 {[%clk 0:04:52.9]} 3... g6 {[%clk 0:04:56.6]} 4.
Bc4 {[%clk 0:04:51.1]} 4... Bg7 {[%clk 0:04:54.8]} 5. d3 {[%clk 0:04:49.6]} 5...
O-O {[%clk 0:04:51.2]} 6. Bg5 {[%clk 0:04:47.8]} 6... c5 {[%clk 0:04:50.3]} 7.
O-O {[%clk 0:04:45]} 7... Nc6 {[%clk 0:04:49.4]} 8. Re1 {[%clk 0:04:41.7]} 8...
h6 {[%clk 0:04:45.5]} 9. Bxf6 {[%clk 0:04:39.6]} 9... Bxf6 {[%clk 0:04:44]} 10.
a3 {[%clk 0:04:34.8]} 10... a6 {[%clk 0:04:40.9]} 11. Na4 {[%clk 0:04:33.6]}
11... b5 {[%clk 0:04:39]} 12. Bb3 {[%clk 0:04:26.2]} 12... bxa4 {[%clk
0:04:37.5]} 13. Bxa4 {[%clk 0:04:25.2]} 13... Bd7 {[%clk 0:04:36.6]} 14. c3
{[%clk 0:04:20.8]} 14... Rb8 {[%clk 0:04:34.9]} 15. Re2 {[%clk 0:04:12.9]} 15...
Ne5 {[%clk 0:04:33.2]} 16. Bxd7 {[%clk 0:04:09.1]} 16... Nxf3+ {[%clk 0:04:31]}
17. gxf3 {[%clk 0:04:07]} 17... Qxd7 {[%clk 0:04:30.9]} 18. f4 {[%clk
0:04:03.1]} 18... Qg4+ {[%clk 0:04:28.4]} 19. Kh1 {[%clk 0:04:00.1]} 19... Qxf4
{[%clk 0:04:26.5]} 20. Re3 {[%clk 0:03:57.2]} 20... Be5 {[%clk 0:04:20.2]} 21.
Rh3 {[%clk 0:03:51.4]} 21... Rxb2 {[%clk 0:04:18.3]} 22. d4 {[%clk 0:03:38.7]}
22... cxd4 {[%clk 0:04:10.6]} 23. cxd4 {[%clk 0:03:37.7]} 23... Qxe4+ {[%clk
0:04:09.8]} 24. f3 {[%clk 0:03:13]} 24... Qf5 {[%clk 0:04:02.7]} 25. Rxh6 {[%clk
0:03:00]} 25... Bxd4 {[%clk 0:04:01.4]} 26. Rh8+ {[%clk 0:02:51.1]} 26... Bxh8
{[%clk 0:03:58.8]} 27. Qg1 {[%clk 0:02:46.6]} 27... Qxf3+ {[%clk 0:03:56.8]} 28.
Qg2 {[%clk 0:02:45.5]} 28... Qxg2# {[%clk 0:03:56.7]} 0-1

[Event "Live Chess"]
[Site "Chess.com"]
[Date "2023.05.20"]
[Round "-"]
[White "hturner40"]
[Black "MrBlond89"]
[Result "1-0"]
[WhiteElo "1803"]
[BlackElo "1374"]
[TimeControl "300"]
[EndTime "14:59:20 PDT"]
[Termination "hturner40 won on time"]

1. e4 {[%clk 0:04:56.8]} 1... e5 {[%clk 0:04:59.2]} 2. Nf3 {[%clk 0:04:55.1]}
2... Nc6 {[%clk 0:04:58.7]} 3. c3 {[%clk 0:04:54.2]} 3... d5 {[%clk 0:04:55.4]}
4. Qa4 {[%clk 0:04:47.3]} 4... dxe4 {[%clk 0:04:50.8]} 5. Nxe5 {[%clk
0:04:45.7]} 5... Bd7 {[%clk 0:04:49]} 6. Nxd7 {[%clk 0:04:42.8]} 6... Qxd7
{[%clk 0:04:47.8]} 7. Qxe4+ {[%clk 0:04:41.6]} 7... Be7 {[%clk 0:04:45.3]} 8. d4
{[%clk 0:04:39.7]} 8... Nf6 {[%clk 0:04:43.4]} 9. Qf3 {[%clk 0:04:16.9]} 9...
O-O {[%clk 0:04:38.8]} 10. Bd3 {[%clk 0:04:15.3]} 10... Rae8 {[%clk 0:04:16.3]}
11. O-O {[%clk 0:04:11.6]} 11... Bd6 {[%clk 0:04:15]} 12. Bg5 {[%clk 0:04:06.4]}
12... Ng4 {[%clk 0:04:10.1]} 13. Bf5 {[%clk 0:03:35.5]} 13... Bxh2+ {[%clk
0:04:06.2]} 14. Kh1 {[%clk 0:03:32.5]} 14... Qd6 {[%clk 0:04:02.6]} 15. Bxg4
{[%clk 0:03:24]} 15... h5 {[%clk 0:02:22.6]} 16. Bxh5 {[%clk 0:02:49.3]} 16...
Re6 {[%clk 0:02:15]} 17. Qh3 {[%clk 0:02:42.5]} 17... Bf4 {[%clk 0:01:54.2]} 18.
Bxf4 {[%clk 0:02:32.6]} 18... Qxf4 {[%clk 0:01:51.3]} 19. Qg4 {[%clk 0:02:11.7]}
19... Qh6 {[%clk 0:01:41.5]} 20. Na3 {[%clk 0:01:52.4]} 20... Ne7 {[%clk
0:01:40.4]} 21. Rae1 {[%clk 0:01:45.7]} 21... Rxe1 {[%clk 0:00:47.9]} 22. Rxe1
{[%clk 0:01:42.6]} 22... Nc6 {[%clk 0:00:15.5]} 23. Qh3 {[%clk 0:01:32.4]} 23...
Qd2 {[%clk 0:00:12.2]} 24. Qe3 {[%clk 0:01:13.1]} 24... Qxb2 {[%clk 0:00:09.5]}
25. Nc4 {[%clk 0:01:10.4]} 25... Qxa2 {[%clk 0:00:07.9]} 26. Ne5 {[%clk
0:01:06.8]} 26... Nxe5 {[%clk 0:00:06.7]} 27. dxe5 {[%clk 0:01:05.8]} 27... Qd5
{[%clk 0:00:04.4]} 28. Bf3 {[%clk 0:01:02]} 28... Qe6 {[%clk 0:00:03.1]} 29.
Bxb7 {[%clk 0:00:58.8]} 29... a5 {[%clk 0:00:02]} 30. Qf3 {[%clk 0:00:41.1]}
30... a4 {[%clk 0:00:01]} 31. Bd5 {[%clk 0:00:39.8]} 1-0

[Event "Live Chess"]
[Site "Chess.com"]
[Date "2023.05.20"]
[Round "-"]
[White "PiotrJanas"]
[Black "sebmoran1"]
[Result "1-0"]
[WhiteElo "1580"]
[BlackElo "1357"]
[TimeControl "300"]
[EndTime "14:59:31 PDT"]
[Termination "PiotrJanas won by resignation"]

1. d4 {[%clk 0:04:58.9]} 1... Nf6 {[%clk 0:04:58.6]} 2. Nc3 {[%clk 0:04:57.5]}
2... e6 {[%clk 0:04:56.8]} 3. Bf4 {[%clk 0:04:56.4]} 3... d5 {[%clk 0:04:55.4]}
4. e3 {[%clk 0:04:55]} 4... Bd6 {[%clk 0:04:53.1]} 5. Qf3 {[%clk 0:04:50]} 5...
Bxf4 {[%clk 0:04:51.7]} 6. Qxf4 {[%clk 0:04:49.9]} 6... Nc6 {[%clk 0:04:50.4]}
7. Nb5 {[%clk 0:04:43.3]} 7... O-O {[%clk 0:04:01]} 8. Qxc7 {[%clk 0:04:23.2]}
8... Qxc7 {[%clk 0:03:58.4]} 9. Nxc7 {[%clk 0:04:23.1]} 9... Rb8 {[%clk
0:03:56.8]} 10. Nb5 {[%clk 0:04:21.1]} 10... Nb4 {[%clk 0:03:52.8]} 11. Bd3
{[%clk 0:04:08.9]} 11... Nxd3+ {[%clk 0:03:51.6]} 12. cxd3 {[%clk 0:04:07.5]}
12... a6 {[%clk 0:03:51.5]} 13. Nc3 {[%clk 0:04:01.8]} 13... Bd7 {[%clk
0:03:50.4]} 14. Nf3 {[%clk 0:03:59.8]} 14... Rfc8 {[%clk 0:03:45.3]} 15. O-O
{[%clk 0:03:57.6]} 15... b5 {[%clk 0:03:44.2]} 16. Ne5 {[%clk 0:03:53.7]} 16...
b4 {[%clk 0:03:38.7]} 17. Nxd7 {[%clk 0:03:46.3]} 17... Nxd7 {[%clk 0:03:38.6]}
18. Na4 {[%clk 0:03:43.5]} 18... Nb6 {[%clk 0:03:33.2]} 19. Nxb6 {[%clk
0:03:40.6]} 19... Rxb6 {[%clk 0:03:33.1]} 20. Rac1 {[%clk 0:03:38]} 20... Rbc6
{[%clk 0:03:31.5]} 21. Rxc6 {[%clk 0:03:10]} 21... Rxc6 {[%clk 0:03:31.4]} 22.
g3 {[%clk 0:02:54.7]} 22... Rc2 {[%clk 0:03:29.6]} 23. Rb1 {[%clk 0:02:50.7]}
23... Rd2 {[%clk 0:03:23.9]} 24. Kg2 {[%clk 0:02:41.8]} 24... Rxd3 {[%clk
0:03:20.6]} 25. Kf3 {[%clk 0:02:38.9]} 25... Rd2 {[%clk 0:03:12.4]} 26. h4
{[%clk 0:02:33.7]} 26... Rc2 {[%clk 0:03:09.6]} 27. e4 {[%clk 0:02:28.4]} 27...
dxe4+ {[%clk 0:03:04.6]} 28. Kxe4 {[%clk 0:02:28.3]} 28... Rxf2 {[%clk
0:03:03.4]} 29. a3 {[%clk 0:02:25.5]} 29... bxa3 {[%clk 0:02:59.7]} 30. bxa3
{[%clk 0:02:25.4]} 30... g6 {[%clk 0:02:57.8]} 31. Rb6 {[%clk 0:02:17.8]} 31...
Re2+ {[%clk 0:02:55]} 32. Kf3 {[%clk 0:02:12.3]} 32... Rd2 {[%clk 0:02:51.8]}
33. Rxa6 {[%clk 0:02:10.7]} 33... Rxd4 {[%clk 0:02:50.6]} 34. a4 {[%clk
0:02:06.2]} 34... Rd3+ {[%clk 0:02:47.9]} 35. Kf4 {[%clk 0:02:04.1]} 35... Kg7
{[%clk 0:02:44.7]} 36. a5 {[%clk 0:02:02.3]} 36... e5+ {[%clk 0:02:43.7]} 37.
Kg4 {[%clk 0:01:56.7]} 37... Rd4+ {[%clk 0:02:41.7]} 38. Kf3 {[%clk 0:01:54.7]}
38... e4+ {[%clk 0:02:40.2]} 39. Ke3 {[%clk 0:01:50.4]} 39... Rd3+ {[%clk
0:02:37.3]} 40. Kxe4 {[%clk 0:01:49.4]} 40... Rxg3 {[%clk 0:02:36.5]} 41. Rb6
{[%clk 0:01:43]} 41... Rg4+ {[%clk 0:02:33.7]} 42. Kd5 {[%clk 0:01:41.6]} 42...
Rxh4 {[%clk 0:02:32.9]} 43. a6 {[%clk 0:01:33.6]} 43... Rh5+ {[%clk 0:02:28.4]}
44. Kc6 {[%clk 0:01:31]} 44... Ra5 {[%clk 0:02:27.2]} 45. Kb7 {[%clk 0:01:27.8]}
45... h5 {[%clk 0:02:25.1]} 46. a7 {[%clk 0:01:26.5]} 46... h4 {[%clk
0:02:23.8]} 47. Ra6 {[%clk 0:01:25.1]} 47... Re5 {[%clk 0:02:19.6]} 48. a8=Q
{[%clk 0:01:21.9]} 48... Re7+ {[%clk 0:02:18.7]} 49. Kc6 {[%clk 0:01:18.8]}
49... Re6+ {[%clk 0:02:18]} 50. Kd5 {[%clk 0:01:17.7]} 50... Rf6 {[%clk
0:02:15.1]} 51. Rxf6 {[%clk 0:01:13.7]} 51... Kxf6 {[%clk 0:02:15]} 52. Qc6+
{[%clk 0:01:10.9]} 1-0

[Event "Live Chess"]
[Site "Chess.com"]
[Date "2023.05.20"]
[Round "-"]
[White "CameronM1234"]
[Black "Hussamalhaidar"]
[Result "0-1"]
[WhiteElo "1104"]
[BlackElo "1025"]
[TimeControl "300"]
[EndTime "14:59:36 PDT"]
[Termination "Hussamalhaidar won by checkmate"]

1. e4 {[%clk 0:04:59.1]} 1... Nc6 {[%clk 0:04:57.4]} 2. Nf3 {[%clk 0:04:56.8]}
2... e5 {[%clk 0:04:54]} 3. g3 {[%clk 0:04:54.8]} 3... Bc5 {[%clk 0:04:44.6]} 4.
Bg2 {[%clk 0:04:53.3]} 4... d6 {[%clk 0:04:41.5]} 5. c3 {[%clk 0:04:41.3]} 5...
Bg4 {[%clk 0:04:39.3]} 6. a4 {[%clk 0:04:38.8]} 6... a6 {[%clk 0:04:36.3]} 7. b4
{[%clk 0:04:33.9]} 7... Ba7 {[%clk 0:04:32.4]} 8. b5 {[%clk 0:04:31]} 8... Na5
{[%clk 0:04:26.9]} 9. bxa6 {[%clk 0:04:11.4]} 9... bxa6 {[%clk 0:04:15.1]} 10.
Qe2 {[%clk 0:04:08.1]} 10... c5 {[%clk 0:04:09.4]} 11. Qxa6 {[%clk 0:03:59.9]}
11... c4 {[%clk 0:04:04.4]} 12. Na3 {[%clk 0:03:44.8]} 12... Bxf2+ {[%clk
0:04:01.9]} 13. Kxf2 {[%clk 0:03:42.2]} 13... Rxa6 {[%clk 0:04:00.1]} 14. Nb5
{[%clk 0:03:41.5]} 14... Qb6+ {[%clk 0:03:57.6]} 15. Ke1 {[%clk 0:03:33.6]}
15... Nb3 {[%clk 0:03:56.3]} 16. Rb1 {[%clk 0:03:23.7]} 16... Rxa4 {[%clk
0:03:53.8]} 17. Rxb3 {[%clk 0:02:52.1]} 17... cxb3 {[%clk 0:03:51.4]} 18. Na3
{[%clk 0:02:37.9]} 18... Rxa3 {[%clk 0:03:46.8]} 19. Bxa3 {[%clk 0:02:36.6]}
19... b2 {[%clk 0:03:44.3]} 20. Bxb2 {[%clk 0:02:20]} 20... Qxb2 {[%clk
0:03:42.6]} 21. h3 {[%clk 0:02:16.1]} 21... Bxf3 {[%clk 0:03:37.7]} 22. Bxf3
{[%clk 0:01:39.3]} 22... Qc1+ {[%clk 0:03:33.9]} 23. Bd1 {[%clk 0:01:38.4]}
23... Nf6 {[%clk 0:03:31.5]} 24. Ke2 {[%clk 0:01:37.3]} 24... Ke7 {[%clk
0:03:26.9]} 25. Re1 {[%clk 0:01:28.1]} 25... Nxe4 {[%clk 0:03:23.4]} 26. Bb3
{[%clk 0:01:22.1]} 26... Qxd2+ {[%clk 0:03:18.6]} 27. Kf1 {[%clk 0:01:20.7]}
27... Nxg3+ {[%clk 0:03:14.2]} 28. Kg1 {[%clk 0:01:18.4]} 28... Qxe1+ {[%clk
0:03:12.6]} 29. Kg2 {[%clk 0:01:17]} 29... e4 {[%clk 0:03:06.3]} 30. Bc4 {[%clk
0:01:11.5]} 30... f5 {[%clk 0:03:00.9]} 31. Bf1 {[%clk 0:01:06.8]} 31... Nxf1
{[%clk 0:02:56.9]} 32. c4 {[%clk 0:01:02.5]} 32... e3 {[%clk 0:02:55.6]} 33. Kf3
{[%clk 0:01:01]} 33... e2 {[%clk 0:02:52.4]} 34. c5 {[%clk 0:00:58.4]} 34...
Nh2+ {[%clk 0:02:47.9]} 35. Ke3 {[%clk 0:00:56.8]} 35... Qd1 {[%clk 0:02:38.4]}
36. cxd6+ {[%clk 0:00:54]} 36... Kxd6 {[%clk 0:02:36.5]} 37. h4 {[%clk
0:00:53.3]} 37... Re8+ {[%clk 0:02:32.8]} 38. Kf4 {[%clk 0:00:50.5]} 38... e1=Q
{[%clk 0:02:29]} 39. Kxf5 {[%clk 0:00:48.9]} 39... Qf3+ {[%clk 0:02:26.2]} 40.
Kg5 {[%clk 0:00:47.8]} 40... Qg1# {[%clk 0:02:23.8]} 0-1